[Event "Early-Titled-Tuesday-Blitz-January-16-2024"]
[Site "Chess.com"]
[Date "2024.01.16"]
[Round "2"]
[White "ZuraTqebuchava"]
[Black "Smiechu"]
[Result "0-1"]
[WhiteElo "2163"]
[BlackElo "2475"]
[TimeControl "180+1"]
[EndTime "8:18:10 PST"]
[Termination "Smiechu won on time"]

1. e4 {[%clk 0:03:00.9]} 1... c5 {[%clk 0:02:59.4]} 2. Nf3 {[%clk 0:03:00.3]}
2... g6 {[%clk 0:03:00]} 3. c3 {[%clk 0:02:57.9]} 3... Bg7 {[%clk 0:02:59.4]} 4.
Bc4 {[%clk 0:02:57.3]} 4... d6 {[%clk 0:02:56.2]} 5. Bb5+ {[%clk 0:02:54.5]}
5... Bd7 {[%clk 0:02:55.4]} 6. Bxd7+ {[%clk 0:02:53.9]} 6... Qxd7 {[%clk
0:02:55.8]} 7. O-O {[%clk 0:02:50.3]} 7... Nf6 {[%clk 0:02:55.4]} 8. Re1 {[%clk
0:02:42.9]} 8... Nc6 {[%clk 0:02:53.8]} 9. d3 {[%clk 0:02:40.2]} 9... O-O {[%clk
0:02:53.3]} 10. h3 {[%clk 0:02:34.2]} 10... b5 {[%clk 0:02:51.2]} 11. a4 {[%clk
0:02:27.3]} 11... b4 {[%clk 0:02:51]} 12. Nbd2 {[%clk 0:02:24.3]} 12... bxc3
{[%clk 0:02:46.9]} 13. bxc3 {[%clk 0:02:23.4]} 13... Nh5 {[%clk 0:02:46.2]} 14.
Qc2 {[%clk 0:02:18]} 14... Rab8 {[%clk 0:02:36]} 15. Rb1 {[%clk 0:02:04.6]}
15... Rxb1 {[%clk 0:02:32.9]} 16. Nxb1 {[%clk 0:02:04.1]} 16... Rb8 {[%clk
0:02:29.7]} 17. Na3 {[%clk 0:02:02.3]} 17... Na5 {[%clk 0:02:03.6]} 18. Bd2
{[%clk 0:01:46]} 18... c4 {[%clk 0:01:51.4]} 19. d4 {[%clk 0:01:36]} 19... Nb3
{[%clk 0:01:42.1]} 20. Nxc4 {[%clk 0:01:28.9]} 20... Qxa4 {[%clk 0:01:41.9]} 21.
Qd3 {[%clk 0:00:51.9]} 21... Rc8 {[%clk 0:01:30.2]} 22. Nb2 {[%clk 0:00:35.9]}
22... Qa5 {[%clk 0:01:23.1]} 23. c4 {[%clk 0:00:23.8]} 23... Nxd2 {[%clk
0:01:21.3]} 24. Nxd2 {[%clk 0:00:17.7]} 24... Qb6 {[%clk 0:01:15.8]} 25. Nd1
{[%clk 0:00:15.3]} 25... Qxd4 {[%clk 0:01:14.1]} 26. Qxd4 {[%clk 0:00:09.4]}
26... Bxd4 {[%clk 0:01:15]} 27. Nf3 {[%clk 0:00:09.4]} 27... Rxc4 {[%clk
0:01:10.6]} 28. Ne3 {[%clk 0:00:07.6]} 28... Bxe3 {[%clk 0:01:10.1]} 29. Rxe3
{[%clk 0:00:08.1]} 29... Nf6 {[%clk 0:01:09.4]} 30. Ra3 {[%clk 0:00:07.7]} 30...
Nxe4 {[%clk 0:00:56.4]} 31. Rxa7 {[%clk 0:00:07.2]} 31... Rc1+ {[%clk
0:00:50.2]} 32. Kh2 {[%clk 0:00:07.2]} 32... Kf8 {[%clk 0:00:50.5]} 33. Ra8+
{[%clk 0:00:06.4]} 33... Kg7 {[%clk 0:00:50.5]} 34. Ra7 {[%clk 0:00:07.1]} 34...
Kf6 {[%clk 0:00:50.6]} 35. Ra4 {[%clk 0:00:06.7]} 35... d5 {[%clk 0:00:49.5]}
36. Ra6+ {[%clk 0:00:04.9]} 36... e6 {[%clk 0:00:49.6]} 37. Ra7 {[%clk
0:00:04.6]} 37... Nxf2 {[%clk 0:00:48.3]} 38. g4 {[%clk 0:00:03.9]} 38... h6
{[%clk 0:00:47.3]} 39. Kg2 {[%clk 0:00:02.8]} 39... Rc2 {[%clk 0:00:42.5]} 0-1

[Event "Early-Titled-Tuesday-Blitz-January-16-2024"]
[Site "Chess.com"]
[Date "2024.01.16"]
[Round "2"]
[White "NovozhilovSemen"]
[Black "SmirnovTimofey2000"]
[Result "1-0"]
[WhiteElo "2678"]
[BlackElo "2001"]
[TimeControl "180+1"]
[EndTime "8:18:13 PST"]
[Termination "NovozhilovSemen won on time"]

1. d4 {[%clk 0:03:00.9]} 1... d5 {[%clk 0:02:58.2]} 2. c4 {[%clk 0:03:00.6]}
2... c6 {[%clk 0:02:58.3]} 3. cxd5 {[%clk 0:03:00.3]} 3... cxd5 {[%clk
0:02:59.2]} 4. Bg5 {[%clk 0:03:00.7]} 4... h6 {[%clk 0:02:57.8]} 5. Bh4 {[%clk
0:03:00.8]} 5... Nf6 {[%clk 0:02:57.3]} 6. Bxf6 {[%clk 0:03:00.8]} 6... exf6
{[%clk 0:02:58.2]} 7. Nc3 {[%clk 0:03:01.3]} 7... Nc6 {[%clk 0:02:49.3]} 8. e3
{[%clk 0:03:01.2]} 8... a6 {[%clk 0:02:37.6]} 9. Bd3 {[%clk 0:03:00]} 9... Bd6
{[%clk 0:02:28.6]} 10. f4 {[%clk 0:02:59.9]} 10... O-O {[%clk 0:02:20.9]} 11.
Nf3 {[%clk 0:02:58]} 11... Re8 {[%clk 0:02:20.7]} 12. Kf2 {[%clk 0:02:57.9]}
12... Be6 {[%clk 0:01:40.4]} 13. f5 {[%clk 0:02:45.8]} 13... Bd7 {[%clk
0:01:32]} 14. Nxd5 {[%clk 0:02:45.7]} 14... Nb4 {[%clk 0:01:23]} 15. Nxb4 {[%clk
0:02:19.7]} 15... Bxb4 {[%clk 0:01:20.6]} 16. Qb3 {[%clk 0:02:15.3]} 16... Bf8
{[%clk 0:00:50.7]} 17. Rhe1 {[%clk 0:02:12.7]} 17... b5 {[%clk 0:00:49.1]} 18.
Rac1 {[%clk 0:02:06.1]} 18... Rc8 {[%clk 0:00:48.9]} 19. a3 {[%clk 0:01:58]}
19... Qe7 {[%clk 0:00:48.2]} 20. Bb1 {[%clk 0:01:38.5]} 20... Rxc1 {[%clk
0:00:42.8]} 21. Rxc1 {[%clk 0:01:38.2]} 21... Rc8 {[%clk 0:00:26.5]} 22. Rxc8
{[%clk 0:01:27.9]} 22... Bxc8 {[%clk 0:00:26.7]} 23. e4 {[%clk 0:01:24.2]} 23...
Bb7 {[%clk 0:00:23.9]} 24. Ke3 {[%clk 0:01:22.3]} 24... Qc7 {[%clk 0:00:20.4]}
25. Qc2 {[%clk 0:01:18.2]} 25... Qb8 {[%clk 0:00:15.2]} 26. g3 {[%clk 0:01:02]}
26... Bd6 {[%clk 0:00:15.2]} 27. Ba2 {[%clk 0:01:00.1]} 27... Qa8 {[%clk
0:00:13.6]} 28. Nd2 {[%clk 0:00:59.6]} 28... Qb8 {[%clk 0:00:12]} 29. Qb3 {[%clk
0:00:55.7]} 29... Qe8 {[%clk 0:00:11]} 30. Qc3 {[%clk 0:00:53.8]} 30... Qe7
{[%clk 0:00:09]} 31. Bb1 {[%clk 0:00:48.1]} 31... Kh7 {[%clk 0:00:08.5]} 32. Bd3
{[%clk 0:00:45]} 32... b4 {[%clk 0:00:08]} 33. Qb3 {[%clk 0:00:45.1]} 33... bxa3
{[%clk 0:00:07.4]} 34. bxa3 {[%clk 0:00:45.6]} 34... Bxa3 {[%clk 0:00:06.7]} 35.
e5 {[%clk 0:00:42.2]} 35... fxe5 {[%clk 0:00:06.2]} 36. f6+ {[%clk 0:00:42.3]}
36... e4 {[%clk 0:00:05.6]} 37. fxe7 {[%clk 0:00:42.7]} 37... exd3 {[%clk
0:00:01.5]} 38. e8=Q {[%clk 0:00:42]} 1-0

[Event "Early-Titled-Tuesday-Blitz-January-16-2024"]
[Site "Chess.com"]
[Date "2024.01.16"]
[Round "2"]
[White "GMJustin"]
[Black "cristianserban1"]
[Result "0-1"]
[WhiteElo "2320"]
[BlackElo "2550"]
[TimeControl "180+1"]
[EndTime "8:18:14 PST"]
[Termination "cristianserban1 won by checkmate"]

1. d4 {[%clk 0:00:56.3]} 1... g6 {[%clk 0:03:00.9]} 2. e4 {[%clk 0:00:55.6]}
2... Bg7 {[%clk 0:02:35.3]} 3. Nc3 {[%clk 0:00:54.7]} 3... a6 {[%clk 0:02:32.4]}
4. h4 {[%clk 0:00:51.3]} 4... h5 {[%clk 0:02:31.8]} 5. Be3 {[%clk 0:00:47.7]}
5... b5 {[%clk 0:02:29.4]} 6. a4 {[%clk 0:00:38]} 6... b4 {[%clk 0:02:28.6]} 7.
Nce2 {[%clk 0:00:36.5]} 7... Bb7 {[%clk 0:02:28]} 8. Ng3 {[%clk 0:00:34.2]} 8...
a5 {[%clk 0:02:26]} 9. c3 {[%clk 0:00:32.2]} 9... Nf6 {[%clk 0:02:21]} 10. f3
{[%clk 0:00:29.5]} 10... bxc3 {[%clk 0:01:53.6]} 11. bxc3 {[%clk 0:00:30.4]}
11... d6 {[%clk 0:01:54]} 12. Bb5+ {[%clk 0:00:28]} 12... Bc6 {[%clk 0:01:53.6]}
13. N1e2 {[%clk 0:00:26.1]} 13... O-O {[%clk 0:01:52.7]} 14. Qd2 {[%clk
0:00:24.6]} 14... Qd7 {[%clk 0:01:48.1]} 15. Bxc6 {[%clk 0:00:21.8]} 15... Nxc6
{[%clk 0:01:48.3]} 16. Bh6 {[%clk 0:00:22]} 16... e5 {[%clk 0:01:46.1]} 17. Bxg7
{[%clk 0:00:12.2]} 17... Kxg7 {[%clk 0:01:47]} 18. Nf5+ {[%clk 0:00:12.3]} 18...
Kg8 {[%clk 0:01:31.7]} 19. Neg3 {[%clk 0:00:08.4]} 19... Ne8 {[%clk 0:01:22]}
20. Nxh5 {[%clk 0:00:06.9]} 20... Ne7 {[%clk 0:01:12.6]} 21. Nxe7+ {[%clk
0:00:03.8]} 21... Qxe7 {[%clk 0:01:13.5]} 22. Ng3 {[%clk 0:00:03.7]} 22... Ng7
{[%clk 0:01:08.9]} 23. h5 {[%clk 0:00:04]} 23... g5 {[%clk 0:01:05.8]} 24. h6
{[%clk 0:00:04.2]} 24... Ne6 {[%clk 0:01:06.1]} 25. Nf5 {[%clk 0:00:04.5]} 25...
Qf6 {[%clk 0:01:06.4]} 26. d5 {[%clk 0:00:04.7]} 26... Nf4 {[%clk 0:01:06.5]}
27. g3 {[%clk 0:00:05]} 27... Ng6 {[%clk 0:01:05.2]} 28. Rh5 {[%clk 0:00:05.1]}
28... Kh7 {[%clk 0:01:02.3]} 29. Rxg5 {[%clk 0:00:05.1]} 29... Rfb8 {[%clk
0:01:02.5]} 30. Kf2 {[%clk 0:00:04.9]} 30... Rb3 {[%clk 0:01:02.5]} 31. Rc1
{[%clk 0:00:04.8]} 31... Rab8 {[%clk 0:01:03]} 32. Rc2 {[%clk 0:00:04.9]} 32...
Ra3 {[%clk 0:01:01.3]} 33. Rh5 {[%clk 0:00:04.7]} 33... Rb1 {[%clk 0:01:00.6]}
34. g4 {[%clk 0:00:04.4]} 34... Raa1 {[%clk 0:01:00.2]} 35. g5 {[%clk
0:00:04.3]} 35... Qd8 {[%clk 0:00:56.2]} 36. Ne3 {[%clk 0:00:04.4]} 36... Nf4
{[%clk 0:00:53.3]} 37. Rh2 {[%clk 0:00:03.1]} 37... Rf1+ {[%clk 0:00:50.8]} 38.
Nxf1 {[%clk 0:00:02.9]} 38... Qxg5 {[%clk 0:00:48.6]} 39. Ng3 {[%clk 0:00:03.1]}
39... Qd8 {[%clk 0:00:44]} 40. Qe3 {[%clk 0:00:03.3]} 40... Qb8 {[%clk
0:00:44.2]} 41. Ne2 {[%clk 0:00:03.5]} 41... Qb1 {[%clk 0:00:43.9]} 42. Nxf4
{[%clk 0:00:03.4]} 42... exf4 {[%clk 0:00:38.5]} 43. Qd2 {[%clk 0:00:03.5]}
43... Qf1# {[%clk 0:00:35.3]} 0-1

[Event "Early-Titled-Tuesday-Blitz-January-16-2024"]
[Site "Chess.com"]
[Date "2024.01.16"]
[Round "2"]
[White "JoliyRoger"]
[Black "SpongeBob_03"]
[Result "0-1"]
[WhiteElo "2467"]
[BlackElo "2204"]
[TimeControl "180+1"]
[EndTime "8:18:14 PST"]
[Termination "SpongeBob_03 won on time"]

1. d4 {[%clk 0:02:54.8]} 1... Nf6 {[%clk 0:02:58.5]} 2. c4 {[%clk 0:02:53.6]}
2... e6 {[%clk 0:02:58.4]} 3. Nc3 {[%clk 0:02:52.4]} 3... d5 {[%clk 0:02:58.1]}
4. Nf3 {[%clk 0:02:49.8]} 4... Bb4 {[%clk 0:02:57]} 5. e3 {[%clk 0:02:48.6]}
5... Ne4 {[%clk 0:02:53.1]} 6. Qc2 {[%clk 0:02:47.9]} 6... c5 {[%clk 0:02:49.1]}
7. Bd3 {[%clk 0:02:43.5]} 7... Bxc3+ {[%clk 0:02:48.3]} 8. bxc3 {[%clk
0:02:41.7]} 8... Nf6 {[%clk 0:02:40.8]} 9. O-O {[%clk 0:02:32.8]} 9... O-O
{[%clk 0:02:35.9]} 10. cxd5 {[%clk 0:02:29.9]} 10... exd5 {[%clk 0:02:33.5]} 11.
c4 {[%clk 0:02:29.5]} 11... Bg4 {[%clk 0:02:30.1]} 12. Ne5 {[%clk 0:02:27.8]}
12... Bh5 {[%clk 0:02:29.2]} 13. cxd5 {[%clk 0:02:23.6]} 13... cxd4 {[%clk
0:02:28.6]} 14. e4 {[%clk 0:02:23.1]} 14... Nbd7 {[%clk 0:02:20.7]} 15. Nxd7
{[%clk 0:02:17.4]} 15... Qxd7 {[%clk 0:02:19]} 16. Bb2 {[%clk 0:02:16.2]} 16...
Rac8 {[%clk 0:02:14.8]} 17. Qd2 {[%clk 0:02:09.2]} 17... Qa4 {[%clk 0:02:11.8]}
18. Rfe1 {[%clk 0:01:46.3]} 18... Bg6 {[%clk 0:02:09.4]} 19. f4 {[%clk
0:01:45.9]} 19... Rfe8 {[%clk 0:02:06]} 20. f5 {[%clk 0:01:40.1]} 20... Bh5
{[%clk 0:02:04.1]} 21. h3 {[%clk 0:01:40]} 21... Nd7 {[%clk 0:01:41.5]} 22. g4
{[%clk 0:01:30.7]} 22... Ne5 {[%clk 0:01:41.3]} 23. Rf1 {[%clk 0:01:19]} 23...
Bxg4 {[%clk 0:01:34.9]} 24. hxg4 {[%clk 0:01:16.5]} 24... Nxg4 {[%clk
0:01:35.8]} 25. Rfc1 {[%clk 0:00:59.1]} 25... Ne5 {[%clk 0:01:33.6]} 26. Bc2
{[%clk 0:00:51.6]} 26... Qa6 {[%clk 0:01:26.1]} 27. Kg2 {[%clk 0:00:43.6]} 27...
Nc4 {[%clk 0:00:52.6]} 28. Qd3 {[%clk 0:00:17.5]} 28... Nxb2 {[%clk 0:00:33.9]}
29. Qxa6 {[%clk 0:00:16.1]} 29... bxa6 {[%clk 0:00:34.8]} 30. Bb3 {[%clk
0:00:07.6]} 30... d3 {[%clk 0:00:33.5]} 31. d6 {[%clk 0:00:03.4]} 31... Rcd8
{[%clk 0:00:26.9]} 0-1

[Event "Early-Titled-Tuesday-Blitz-January-16-2024"]
[Site "Chess.com"]
[Date "2024.01.16"]
[Round "2"]
[White "JimDiGrease"]
[Black "Caterpiller35"]
[Result "1-0"]
[WhiteElo "3000"]
[BlackElo "2623"]
[TimeControl "180+1"]
[EndTime "8:18:15 PST"]
[Termination "JimDiGrease won by resignation"]

1. d4 {[%clk 0:03:00.9]} 1... Nf6 {[%clk 0:02:59.9]} 2. c4 {[%clk 0:03:01.4]}
2... e6 {[%clk 0:02:58.8]} 3. Bf4 {[%clk 0:03:02]} 3... Bb4+ {[%clk 0:02:57.4]}
4. Nd2 {[%clk 0:03:02.2]} 4... c5 {[%clk 0:02:57.6]} 5. dxc5 {[%clk 0:03:00.4]}
5... Bxc5 {[%clk 0:02:57]} 6. e3 {[%clk 0:02:58.2]} 6... d5 {[%clk 0:02:55.1]}
7. Ngf3 {[%clk 0:02:56.1]} 7... O-O {[%clk 0:02:54.9]} 8. a3 {[%clk 0:02:54.9]}
8... a5 {[%clk 0:02:48.9]} 9. Rc1 {[%clk 0:02:53.4]} 9... Ba7 {[%clk 0:02:44]}
10. cxd5 {[%clk 0:02:46.1]} 10... Nxd5 {[%clk 0:02:44.9]} 11. Bg3 {[%clk
0:02:38.8]} 11... Nc6 {[%clk 0:02:44.6]} 12. Bb5 {[%clk 0:02:34.4]} 12... Qf6
{[%clk 0:02:35.2]} 13. Qc2 {[%clk 0:02:21.7]} 13... Bd7 {[%clk 0:02:22.4]} 14.
Bd3 {[%clk 0:02:19.5]} 14... h6 {[%clk 0:02:14.6]} 15. O-O {[%clk 0:02:17.9]}
15... Bxe3 {[%clk 0:02:07.3]} 16. Ne4 {[%clk 0:02:03.8]} 16... Qd8 {[%clk
0:01:58.1]} 17. fxe3 {[%clk 0:01:57.7]} 17... Nxe3 {[%clk 0:01:59]} 18. Qf2
{[%clk 0:01:51.5]} 18... Nxf1 {[%clk 0:01:54.1]} 19. Rxf1 {[%clk 0:01:52.4]}
19... Ne7 {[%clk 0:01:46.1]} 20. Rd1 {[%clk 0:01:35.2]} 20... Nf5 {[%clk
0:01:23.7]} 21. Nd6 {[%clk 0:01:35]} 21... Nxg3 {[%clk 0:01:19.7]} 22. hxg3
{[%clk 0:01:35.7]} 22... Bc6 {[%clk 0:01:10.2]} 23. Ne5 {[%clk 0:01:20.3]} 23...
Qf6 {[%clk 0:01:08]} 24. Qe3 {[%clk 0:01:10.7]} 24... Rad8 {[%clk 0:01:02.1]}
25. Bc2 {[%clk 0:00:47.7]} 25... Bd5 {[%clk 0:00:50.9]} 26. Rf1 {[%clk
0:00:45.6]} 26... Qg5 {[%clk 0:00:20.2]} 27. Qxg5 {[%clk 0:00:39.1]} 27... hxg5
{[%clk 0:00:21.1]} 28. Ndxf7 {[%clk 0:00:35.8]} 28... Rc8 {[%clk 0:00:20.5]} 29.
Bg6 {[%clk 0:00:25.9]} 29... b5 {[%clk 0:00:16.2]} 30. Kf2 {[%clk 0:00:14.7]}
30... b4 {[%clk 0:00:15.2]} 31. Rh1 {[%clk 0:00:13.4]} 31... Rxf7+ {[%clk
0:00:11]} 32. Bxf7+ {[%clk 0:00:13.4]} 1-0

[Event "Early-Titled-Tuesday-Blitz-January-16-2024"]
[Site "Chess.com"]
[Date "2024.01.16"]
[Round "2"]
[White "DamianoLew95"]
[Black "Oleksandr_Bortnyk"]
[Result "0-1"]
[WhiteElo "2665"]
[BlackElo "3108"]
[TimeControl "180+1"]
[EndTime "8:18:16 PST"]
[Termination "Oleksandr_Bortnyk won by resignation"]

1. e4 {[%clk 0:03:00.9]} 1... g6 {[%clk 0:02:54.5]} 2. d4 {[%clk 0:02:56.7]}
2... Bg7 {[%clk 0:02:54.5]} 3. Nc3 {[%clk 0:02:55.4]} 3... c6 {[%clk 0:02:52.8]}
4. Be3 {[%clk 0:02:40.5]} 4... d5 {[%clk 0:02:51.8]} 5. e5 {[%clk 0:02:40.6]}
5... h5 {[%clk 0:02:50.8]} 6. h3 {[%clk 0:02:40.6]} 6... Nh6 {[%clk 0:02:50.2]}
7. Nf3 {[%clk 0:02:33.3]} 7... Nf5 {[%clk 0:02:38.7]} 8. Bf4 {[%clk 0:02:31.7]}
8... Qb6 {[%clk 0:02:35.3]} 9. Na4 {[%clk 0:02:22.9]} 9... Qc7 {[%clk
0:02:24.4]} 10. Qd2 {[%clk 0:02:16.9]} 10... Be6 {[%clk 0:02:17.6]} 11. Nc5
{[%clk 0:02:13.1]} 11... Nd7 {[%clk 0:02:17.9]} 12. Nxe6 {[%clk 0:02:12.1]}
12... fxe6 {[%clk 0:02:18.8]} 13. Ng5 {[%clk 0:02:09.3]} 13... Nf8 {[%clk
0:02:18.9]} 14. h4 {[%clk 0:02:09.9]} 14... a6 {[%clk 0:02:13]} 15. g3 {[%clk
0:02:00]} 15... c5 {[%clk 0:02:10.3]} 16. c3 {[%clk 0:01:43.9]} 16... cxd4
{[%clk 0:02:08]} 17. cxd4 {[%clk 0:01:43.8]} 17... Qb6 {[%clk 0:02:07.6]} 18.
Rd1 {[%clk 0:01:43.5]} 18... Rc8 {[%clk 0:02:02.7]} 19. Be2 {[%clk 0:01:42.1]}
19... Bh6 {[%clk 0:02:02]} 20. Nh3 {[%clk 0:01:30.8]} 20... Bxf4 {[%clk
0:02:01.2]} 21. Nxf4 {[%clk 0:01:31.7]} 21... Kf7 {[%clk 0:02:00.5]} 22. O-O
{[%clk 0:01:25.8]} 22... Nd7 {[%clk 0:01:38.5]} 23. Bd3 {[%clk 0:01:24.2]} 23...
Rcg8 {[%clk 0:01:26.5]} 24. Bb1 {[%clk 0:01:00.2]} 24... Nb8 {[%clk 0:01:19.6]}
25. Nh3 {[%clk 0:00:48.4]} 25... Ke8 {[%clk 0:01:07.5]} 26. Ng5 {[%clk
0:00:46.3]} 26... Kd7 {[%clk 0:01:08.1]} 27. Kg2 {[%clk 0:00:40.4]} 27... Nc6
{[%clk 0:01:07.3]} 28. Bxf5 {[%clk 0:00:39.4]} 28... gxf5 {[%clk 0:01:08.2]} 29.
Rfe1 {[%clk 0:00:33.1]} 29... Rf8 {[%clk 0:01:04.6]} 30. Re3 {[%clk 0:00:24.2]}
30... f4 {[%clk 0:00:49]} 31. Rb3 {[%clk 0:00:23.9]} 31... Qa7 {[%clk
0:00:49.9]} 32. gxf4 {[%clk 0:00:23.8]} 32... Rf5 {[%clk 0:00:50.3]} 33. Rf3
{[%clk 0:00:19.4]} 33... Rhf8 {[%clk 0:00:49.8]} 34. Kg3 {[%clk 0:00:19.9]}
34... Qb6 {[%clk 0:00:45]} 35. Qc3 {[%clk 0:00:18.7]} 35... a5 {[%clk
0:00:43.2]} 36. Rd2 {[%clk 0:00:19]} 36... Qa6 {[%clk 0:00:42.6]} 37. Qd3 {[%clk
0:00:18]} 37... Qb6 {[%clk 0:00:29.8]} 38. a3 {[%clk 0:00:18]} 38... a4 {[%clk
0:00:29.7]} 39. Qc3 {[%clk 0:00:17.3]} 39... Qa6 {[%clk 0:00:29.8]} 40. Qc5
{[%clk 0:00:16.8]} 40... Qf1 {[%clk 0:00:29.5]} 41. Qc2 {[%clk 0:00:13.5]} 41...
Qg1+ {[%clk 0:00:27.4]} 42. Kh3 {[%clk 0:00:13.5]} 42... Rxg5 {[%clk 0:00:26.5]}
0-1

[Event "Early-Titled-Tuesday-Blitz-January-16-2024"]
[Site "Chess.com"]
[Date "2024.01.16"]
[Round "2"]
[White "Soledadense88"]
[Black "GMAkobianSTL"]
[Result "1-0"]
[WhiteElo "2412"]
[BlackElo "2692"]
[TimeControl "180+1"]
[EndTime "8:18:16 PST"]
[Termination "Soledadense88 won on time"]

1. d4 {[%clk 0:03:00.9]} 1... e6 {[%clk 0:02:58.6]} 2. e4 {[%clk 0:03:00.1]}
2... d5 {[%clk 0:02:58.2]} 3. Nc3 {[%clk 0:03:00.1]} 3... Bb4 {[%clk 0:02:57.2]}
4. e5 {[%clk 0:02:58.6]} 4... c5 {[%clk 0:02:57.1]} 5. a3 {[%clk 0:02:57.8]}
5... Ba5 {[%clk 0:02:57.4]} 6. Qg4 {[%clk 0:02:36.5]} 6... g6 {[%clk 0:02:57.1]}
7. dxc5 {[%clk 0:02:16]} 7... Nc6 {[%clk 0:02:53.2]} 8. Nf3 {[%clk 0:02:13.1]}
8... d4 {[%clk 0:02:51.3]} 9. b4 {[%clk 0:02:11.9]} 9... Nxb4 {[%clk 0:02:46.6]}
10. axb4 {[%clk 0:01:57.9]} 10... Bxb4 {[%clk 0:02:46.2]} 11. Bb5+ {[%clk
0:01:53.2]} 11... Kf8 {[%clk 0:02:34.2]} 12. Bd2 {[%clk 0:01:47.7]} 12... Bxc3
{[%clk 0:02:26.2]} 13. Bxc3 {[%clk 0:01:46]} 13... dxc3 {[%clk 0:02:26.8]} 14.
O-O {[%clk 0:01:43.8]} 14... Ne7 {[%clk 0:02:26.6]} 15. Qh4 {[%clk 0:01:13.2]}
15... h6 {[%clk 0:01:48.8]} 16. Rfd1 {[%clk 0:01:00.7]} 16... Qc7 {[%clk
0:01:47.6]} 17. Qf6 {[%clk 0:00:59.5]} 17... Rh7 {[%clk 0:00:49.8]} 18. Rd6
{[%clk 0:00:46.9]} 18... a6 {[%clk 0:00:43.1]} 19. Rad1 {[%clk 0:00:34.2]} 19...
Nd5 {[%clk 0:00:34.9]} 20. Rd8+ {[%clk 0:00:34]} 20... Qxd8 {[%clk 0:00:34.8]}
21. Qxd8+ {[%clk 0:00:34.3]} 21... Kg7 {[%clk 0:00:35.5]} 22. Rxd5 {[%clk
0:00:19.1]} 22... exd5 {[%clk 0:00:35.4]} 23. Qf6+ {[%clk 0:00:19.4]} 23... Kg8
{[%clk 0:00:35.2]} 24. Bd3 {[%clk 0:00:18.5]} 24... Bg4 {[%clk 0:00:31.5]} 25.
Nd4 {[%clk 0:00:17.9]} 25... Re8 {[%clk 0:00:31.2]} 26. h3 {[%clk 0:00:17.8]}
26... Bc8 {[%clk 0:00:30.7]} 27. e6 {[%clk 0:00:18.2]} 27... Bxe6 {[%clk
0:00:18.9]} 28. Bxg6 {[%clk 0:00:18.3]} 28... Rg7 {[%clk 0:00:09.2]} 29. Bf5
{[%clk 0:00:18.6]} 29... Bxf5 {[%clk 0:00:02.9]} 30. Nxf5 {[%clk 0:00:19.5]}
30... Rg6 {[%clk 0:00:03]} 31. Ne7+ {[%clk 0:00:19.7]} 31... Rxe7 {[%clk
0:00:03.1]} 32. Qxe7 {[%clk 0:00:20.6]} 1-0

[Event "Early-Titled-Tuesday-Blitz-January-16-2024"]
[Site "Chess.com"]
[Date "2024.01.16"]
[Round "2"]
[White "Seochesspie"]
[Black "LeoLV10"]
[Result "1-0"]
[WhiteElo "2803"]
[BlackElo "2451"]
[TimeControl "180+1"]
[EndTime "8:18:18 PST"]
[Termination "Seochesspie won by resignation"]

1. e4 {[%clk 0:03:00.9]} 1... c6 {[%clk 0:03:00.1]} 2. d4 {[%clk 0:03:00]} 2...
d5 {[%clk 0:03:01]} 3. Nd2 {[%clk 0:03:00.5]} 3... dxe4 {[%clk 0:02:57.6]} 4.
Nxe4 {[%clk 0:03:01.4]} 4... Nf6 {[%clk 0:02:58.3]} 5. Nxf6+ {[%clk 0:03:01.6]}
5... exf6 {[%clk 0:02:59.2]} 6. Be3 {[%clk 0:03:01.4]} 6... Bd6 {[%clk
0:02:59.2]} 7. Bd3 {[%clk 0:03:01.2]} 7... O-O {[%clk 0:02:59.9]} 8. Ne2 {[%clk
0:03:01]} 8... Re8 {[%clk 0:02:59.7]} 9. O-O {[%clk 0:03:01.2]} 9... Nd7 {[%clk
0:03:00]} 10. c4 {[%clk 0:02:59.9]} 10... Nf8 {[%clk 0:03:00]} 11. Qc2 {[%clk
0:02:55.1]} 11... Be6 {[%clk 0:02:57.8]} 12. Rad1 {[%clk 0:02:52.4]} 12... Rc8
{[%clk 0:02:58.1]} 13. b3 {[%clk 0:02:51.8]} 13... Qd7 {[%clk 0:02:29.2]} 14.
Nc3 {[%clk 0:02:51]} 14... Bb8 {[%clk 0:02:28]} 15. Ne4 {[%clk 0:02:48.7]} 15...
Bg4 {[%clk 0:02:15]} 16. Rc1 {[%clk 0:02:32.2]} 16... Qc7 {[%clk 0:02:14.5]} 17.
g3 {[%clk 0:02:32]} 17... f5 {[%clk 0:01:57.5]} 18. Nc3 {[%clk 0:02:27]} 18...
Qd7 {[%clk 0:01:53.9]} 19. d5 {[%clk 0:02:18.8]} 19... f4 {[%clk 0:01:48.4]} 20.
Bd2 {[%clk 0:02:12.5]} 20... fxg3 {[%clk 0:01:08.9]} 21. hxg3 {[%clk 0:02:10]}
21... Ng6 {[%clk 0:01:08.2]} 22. Rfe1 {[%clk 0:02:04.4]} 22... Ne5 {[%clk
0:00:48.4]} 23. Bxh7+ {[%clk 0:02:04]} 23... Kh8 {[%clk 0:00:48.3]} 24. Be4
{[%clk 0:02:02.7]} 24... Nf3+ {[%clk 0:00:23.8]} 25. Kg2 {[%clk 0:01:54.6]}
25... Nxe1+ {[%clk 0:00:21.4]} 26. Rxe1 {[%clk 0:01:55.5]} 26... f5 {[%clk
0:00:21.7]} 27. Rh1+ {[%clk 0:01:49]} 27... Kg8 {[%clk 0:00:21.8]} 28. Bd3
{[%clk 0:01:49.5]} 28... Be5 {[%clk 0:00:11.7]} 29. f3 {[%clk 0:01:36.7]} 29...
Bxc3 {[%clk 0:00:09.9]} 30. Bxc3 {[%clk 0:01:33.2]} 30... cxd5 {[%clk
0:00:10.2]} 31. fxg4 {[%clk 0:01:32.8]} 31... dxc4 {[%clk 0:00:10]} 32. Bxc4+
{[%clk 0:01:18.3]} 32... Rxc4 {[%clk 0:00:08.2]} 33. bxc4 {[%clk 0:01:19.2]}
33... Qc6+ {[%clk 0:00:08.8]} 34. Kh2 {[%clk 0:01:08.1]} 34... Qf3 {[%clk
0:00:08.6]} 35. Re1 {[%clk 0:01:08.2]} 35... Rxe1 {[%clk 0:00:05.1]} 36. Bxe1
{[%clk 0:01:08.1]} 36... Qxg4 {[%clk 0:00:06]} 37. Qd3 {[%clk 0:01:06.1]} 37...
f4 {[%clk 0:00:05.2]} 38. Qd8+ {[%clk 0:01:02]} 38... Kf7 {[%clk 0:00:05.4]} 39.
Qc7+ {[%clk 0:01:01.1]} 39... Kg6 {[%clk 0:00:05.4]} 40. Qxf4 {[%clk 0:01:00.4]}
40... Qe2+ {[%clk 0:00:05.8]} 41. Bf2 {[%clk 0:01:00.8]} 41... Qxa2 {[%clk
0:00:05.7]} 42. Qe4+ {[%clk 0:00:57.6]} 42... Kf7 {[%clk 0:00:05.7]} 43. Kg2
{[%clk 0:00:57.7]} 43... Kg8 {[%clk 0:00:05]} 44. c5 {[%clk 0:00:50.9]} 44...
Qa6 {[%clk 0:00:03.8]} 45. Qd5+ {[%clk 0:00:50.8]} 45... Kh7 {[%clk 0:00:03.8]}
46. g4 {[%clk 0:00:51.2]} 46... Kg6 {[%clk 0:00:03.5]} 47. Qf5+ {[%clk
0:00:48.3]} 47... Kh6 {[%clk 0:00:03.8]} 48. Be3+ {[%clk 0:00:48.7]} 1-0